bitfinex/quotes_ETHUSD_20251128
["timestamp","ask_amount","ask_price","bid_price","bid_amount"]
[1764360038701,39.28323161,3052.6,3052.5,0.001]
[1764360038869,42.55912756,3052.6,3052.5,0.001]
[1764360039075,42.54853705,3052.6,3052.5,0.001]
[1764360039419,36.88812305,3052.6,3052.5,0.001]
[1764360039584,34.57980305,3052.6,3052.5,0.001]
[1764360039908,12.08673705,3052.6,3052.5,0.001]
[1764360040209,38.11109905,3052.6,3052.5,0.001]
[1764360040412,37.80001405,3052.6,3052.5,0.001]
[1764360041295,33.19598905,3052.6,3052.5,0.001]
[1764360041470,30.31157005,3052.6,3052.5,0.001]
[1764360041671,28.77834205,3052.6,3052.5,0.001]
[1764360041903,29.22944205,3052.6,3052.5,0.001]
[1764360042111,33.80221705,3052.6,3052.5,0.001]
[1764360042471,32.95384497,3052.6,3052.5,0.001]
[1764360042673,33.28452559,3052.6,3052.5,0.001]
[1764360043070,36.11674559,3052.6,3052.5,0.001]
[1764360043814,1.23109811,3052.5,3052.2,0.001]
[1764360043979,35.86123347,3052.3,3052.2,0.001]
[1764360044179,37.07972457,3052.3,3052.2,0.001]
[1764360044480,37.9366559,3052.3,3052.2,0.001]
[1764360044685,7.9366559,3052.3,3052.2,0.001]
[1764360044887,39.06548773,3052.3,3052.2,0.001]
[1764360045091,42.22238866,3052.3,3052.2,0.001]
[1764360045388,31.56177873,3052.2,3052.1,0.001]
[1764360045589,32.90696983,3052.2,3052.1,0.001]
[1764360045795,35.13359811,3051.9,3050.8,0.4885]
[1764360046017,0.1,3050.9,3050.8,0.4885]
[1764360046314,0.4063911,3050.9,3050.8,0.4885]
[1764360046603,0.7948911,3050.9,3050.1,3.31130318]
[1764360046780,0.5885,3050.9,3050.8,0.4537]
[1764360046981,4.17237702,3050.9,3050.8,0.9422]
[1764360047903,4.07237702,3050.9,3050.8,0.9422]
[1764360048512,4.17237702,3050.9,3050.8,0.9422]
[1764360048697,13.83924402,3050.9,3050.8,0.9422]
[1764360048897,13.83893798,3050.9,3050.8,0.9422]
[1764360049610,17.34439898,3050.9,3050.8,0.4537]
[1764360049814,17.34439898,3050.9,3050.0,0.1888]
[1764360049815,0.1,3050.6,3050.3,0.4885]
[1764360050105,0.30584966,3050.5,3050.3,0.4885]
[1764360050307,0.30584966,3050.5,3050.0,0.1888]
[1764360050308,9.029285,3050.3,3050.0,0.1888]
[1764360050483,0.40584966,3050.2,3050.1,0.4885]
[1764360050684,0.30584966,3050.2,3050.1,0.4885]
[1764360050907,0.30584966,3050.2,3050.1,0.9422]
[1764360059285,0.30584966,3050.2,3050.1,10.32258504]
[1764360059501,0.30584966,3050.2,3050.1,11.66880614]
[1764360059707,0.30584966,3050.2,3050.1,6.32538205]
[1764360059983,0.30584966,3050.2,3050.1,5.59978794]
[1764360060189,0.30584966,3050.2,3050.1,2.32120691]
[1764360060389,0.30584966,3050.2,3050.1,0.9422]
[1764360060725,0.30584966,3050.2,3050.1,0.4537]
[1764360060939,3.5843232,3050.2,3050.1,0.4537]
[1764360062289,3.5843232,3050.2,3050.1,0.9422]
[1764360063004,0.30584966,3050.2,3050.1,0.9422]
[1764360063211,3.5843232,3050.2,3050.1,0.9422]
[1764360063919,0.1,3050.1,3050.0,0.001]
[1764360064133,5.80867375,3050.1,3050.0,0.001]
[1764360064331,5.70867375,3050.1,3050.0,0.001]
[1764360064617,5.80867375,3050.1,3050.0,0.001]
[1764360064818,0.30584966,3050.1,3050.0,0.4547]
[1764360065035,0.30584966,3050.1,3050.0,0.9432]
[1764360067791,0.30584966,3050.1,3050.0,4.22188852]
[1764360067997,0.30584966,3050.1,3050.0,0.9432]
[1764360069295,0.30584966,3050.1,3050.0,4.22188852]
[1764360070081,0.30584966,3050.1,3050.0,0.9432]
[1764360070228,0.30584966,3050.1,3050.0,4.22188852]
[1764360072508,0.30584966,3050.1,3050.0,0.9432]
[1764360073606,0.30584966,3050.1,3050.0,4.22188852]
[1764360074239,0.30584966,3050.1,3050.0,4.2546754]
[1764360074604,0.30584966,3050.1,3050.0,4.22188852]
[1764360075136,0.30584966,3050.1,3050.0,0.4547]
[1764360075338,4.15453069,3050.1,3050.0,0.001]
[1764360075516,23.77951169,3050.1,3050.0,0.001]
[1764360075711,23.20446469,3050.1,3050.0,0.001]
[1764360076129,22.16747624,3050.1,3050.0,0.001]
[1764360076613,33.33612424,3050.1,3050.0,0.001]
[1764360076934,4.32773169,3050.1,3050.0,0.001]
[1764360077111,7.60976569,3050.1,3050.0,0.001]
[1764360077642,10.39803669,3050.1,3050.0,0.001]
[1764360078411,5.37273169,3050.1,3050.0,0.001]
[1764360078616,19.61786569,3050.1,3050.0,0.001]
[1764360078819,19.71786569,3050.1,3050.0,0.001]
[1764360079424,12.70143369,3050.1,3050.0,0.001]
[1764360079602,12.85159169,3050.1,3050.0,0.001]
[1764360079806,12.27669169,3050.1,3050.0,0.001]
[1764360080034,8.34370569,3050.1,3050.0,0.4644]
[1764360080407,8.81380569,3050.1,3050.0,0.001]
[1764360080743,12.81995469,3050.1,3050.0,0.001]
[1764360081521,12.21536669,3050.1,3050.0,0.001]
[1764360081840,12.24207669,3050.1,3050.0,0.001]
[1764360082028,13.83797181,3050.1,3050.0,0.001]
[1764360082412,14.41287181,3050.1,3050.0,0.001]
[1764360082617,17.19881781,3050.1,3050.0,0.001]
[1764360083224,17.09881781,3050.1,3050.0,0.001]
[1764360083408,17.19881781,3050.1,3050.0,0.001]
[1764360083608,16.79707181,3050.1,3050.0,0.001]
[1764360084313,16.32217181,3050.1,3050.0,0.001]
[1764360084515,16.79707181,3050.1,3050.0,0.001]
[1764360084709,18.46881581,3050.1,3050.0,0.001]
[1764360086109,18.36881581,3050.1,3050.0,0.001]
[1764360086332,18.46881581,3050.1,3050.0,0.001]
[1764360087448,18.67581581,3050.1,3050.0,0.001]
[1764360087947,18.87652081,3050.1,3050.0,0.001]
[1764360088311,18.77652081,3050.1,3050.0,0.001]
[1764360088513,23.65099165,3050.1,3050.0,0.001]
[1764360088839,24.59640665,3050.1,3050.0,0.001]
[1764360089343,24.39570165,3050.1,3050.0,0.001]
[1764360089551,15.52528681,3050.1,3050.0,0.001]
[1764360089711,9.83348181,3050.1,3050.0,0.001]
[1764360089918,8.62930781,3050.1,3050.0,0.001]
[1764360090827,3.58443069,3050.1,3050.0,0.4644]
[1764360091162,8.62390153,3050.1,3050.0,0.001]
[1764360091332,17.61701453,3050.1,3050.0,0.001]
[1764360091953,16.64801453,3050.1,3050.0,0.001]
[1764360092251,11.60854369,3050.1,3050.0,0.001]
[1764360092753,8.59599269,3050.1,3050.0,0.001]
[1764360092928,8.55745769,3050.1,3050.0,0.001]
[1764360093262,3.58443069,3050.1,3050.0,0.9349]
[1764360093755,3.58443069,3050.1,3050.0,0.4644]
[1764360096254,11.34163253,3050.1,3050.0,0.001]
[1764360096451,13.35739386,3050.1,3050.0,0.001]
[1764360096619,7.84012302,3050.1,3050.0,0.001]
[1764360096818,7.84012302,3050.1,3050.0,0.4806]
[1764360097049,7.94012302,3050.1,3050.0,0.4806]
[1764360097233,4.56154199,3050.1,3050.0,0.4806]
[1764360097424,6.30216169,3050.1,3050.0,0.4806]
[1764360097852,6.40216169,3050.1,3050.0,0.4806]
[1764360098260,0.30584966,3050.1,3050.0,0.9449]
[1764360098555,0.78476393,3050.1,3050.0,0.001]
[1764360098850,4.51584496,3050.1,3050.0,0.001]
[1764360099059,0.30696393,3050.1,3050.0,0.001]
[1764360099260,0.30696393,3050.1,3050.0,0.4806]
[1764360099461,0.30696393,3050.1,3050.0,0.9449]
[1764360099767,0.30696393,3050.1,3050.0,0.4806]
[1764360099969,0.30696393,3050.1,3050.0,0.9449]
[1764360100752,0.30696393,3050.1,3050.0,0.4806]
[1764360101246,3.58554496,3050.1,3050.0,0.4806]
[1764360101764,3.68554496,3050.1,3050.0,0.4806]
[1764360101932,3.58554496,3050.1,3050.0,0.4806]
[1764360102570,3.68554496,3050.1,3050.0,0.4806]
[1764360102868,3.58554496,3050.1,3050.0,0.4806]
[1764360103033,3.68554496,3050.1,3050.0,0.4806]
[1764360103758,4.85974727,3050.1,3050.0,0.001]
[1764360104158,4.38194727,3050.1,3050.0,0.001]
[1764360105378,4.38194727,3050.1,3050.0,0.4806]
[1764360106267,4.28194727,3050.1,3050.0,0.4806]
[1764360108979,5.31224727,3050.1,3050.0,0.001]
[1764360109153,4.75974727,3050.1,3050.0,0.001]
[1764360109357,4.28194727,3050.1,3050.0,0.001]
[1764360109675,4.28194727,3050.1,3050.0,0.4806]
[1764360109843,4.28194727,3050.1,3050.0,0.001]
[1764360110171,1.00336624,3050.1,3050.0,0.001]
[1764360110582,0.30696393,3050.1,3050.0,0.4806]
[1764360110761,0.30696393,3050.1,3050.0,0.9449]
[1764360115780,0.30696393,3050.1,3050.0,0.4806]
[1764360116249,0.30696393,3050.1,3050.0,0.9449]
[1764360120956,3.35190843,3050.1,3050.0,0.001]
[1764360121281,34.87439946,3050.1,3050.0,0.001]
[1764360121499,35.70710411,3050.1,3049.7,0.001]
[1764360121794,4.421491,3049.8,3049.7,0.001]
[1764360121986,5.55404904,3049.8,3049.7,0.001]
[1764360122181,6.00654904,3049.8,3049.7,0.001]
[1764360122358,24.49432957,3049.8,3049.7,0.001]
[1764360122776,22.25358757,3049.8,3049.7,0.001]
[1764360123058,18.98074432,3049.8,3049.7,0.001]
[1764360123265,24.02368532,3049.8,3049.7,0.001]
[1764360123599,21.98574432,3049.8,3049.7,0.001]
[1764360124376,16.11267032,3049.8,3049.7,0.001]
[1764360125251,8.03603432,3049.8,3049.7,0.001]
[1764360125456,25.71264132,3049.8,3049.7,0.001]
[1764360126068,22.71264132,3049.8,3049.7,0.001]
[1764360126478,23.53506532,3049.8,3049.7,0.001]
[1764360126879,16.95250732,3049.8,3049.7,0.001]
[1764360127369,21.27157232,3049.8,3049.7,0.001]
[1764360127570,16.48189132,3049.8,3049.7,0.001]
[1764360127859,12.65935632,3049.8,3049.7,0.001]
[1764360128560,18.02237632,3049.8,3049.7,0.001]
[1764360128980,0.30696393,3049.8,3049.7,0.4802]
[1764360129287,0.30696393,3049.8,3049.7,0.9362]
[1764360129861,3.90786093,3049.8,3049.7,0.001]
[1764360130068,0.30696393,3049.8,3049.7,0.4802]
[1764360130387,2.87777093,3049.8,3049.7,0.4802]
[1764360130685,2.88103893,3049.8,3049.7,0.4802]
[1764360130987,3.58586746,3049.8,3049.7,0.4802]
[1764360131164,0.30696393,3049.8,3049.7,0.4802]
[1764360131369,6.62254246,3049.8,3049.7,0.001]
[1764360131564,7.09924246,3049.8,3049.7,0.001]
[1764360131958,9.62587446,3049.8,3049.7,0.001]
[1764360132162,6.34697093,3049.8,3049.7,0.001]
[1764360132396,3.13547093,3049.8,3049.7,0.4802]
[1764360133097,3.13120293,3049.8,3049.7,0.4802]
[1764360133293,3.13120293,3049.8,3049.7,0.001]
[1764360134305,4.67090693,3049.8,3049.7,0.001]
[1764360135362,0.30696393,3049.8,3049.7,0.4595]
[1764360135567,0.30696393,3049.8,3049.7,0.9382]
[1764360135764,0.30696393,3049.8,3049.7,1.36004206]
[1764360136768,0.30696393,3049.8,3049.7,4.63905311]
[1764360137984,0.30696393,3049.8,3049.7,1.36004206]
[1764360138183,0.30696393,3049.8,3049.7,4.42421105]
[1764360140793,0.30696393,3049.8,3049.7,4.21721105]
[1764360141707,0.30696393,3049.8,3049.7,4.25000116]
[1764360147490,0.30696393,3049.8,3049.7,4.21721105]
[1764360147810,0.30637481,3049.8,3049.7,4.21721105]
[1764360148012,0.30637481,3049.8,3049.7,4.98764345]
[1764360149891,0.30637481,3049.8,3049.7,3.73851105]
[1764360150088,0.30637481,3049.8,3049.7,4.21721105]
[1764360150283,0.30637481,3049.8,3049.7,0.4595]
[1764360150484,0.79007481,3049.8,3049.7,0.001]
[1764360150720,1.24187481,3049.8,3049.7,0.001]
[1764360151012,5.07305051,3049.8,3049.7,0.001]
[1764360151793,4.97305051,3049.8,3049.7,0.001]
[1764360151997,1.69414698,3049.8,3049.7,0.001]
[1764360152200,1.24234698,3049.8,3049.7,0.001]
[1764360152411,4.97305051,3049.8,3049.7,0.001]
[1764360153401,5.07305051,3049.8,3049.7,0.001]
[1764360153600,4.97305051,3049.8,3049.7,0.001]
[1764360153898,5.07305051,3049.8,3049.7,0.001]
[1764360155302,4.97305051,3049.8,3049.7,0.001]
[1764360155838,5.07305051,3049.8,3049.7,0.001]
[1764360156134,4.97336566,3049.8,3049.7,0.001]
[1764360156936,5.07336566,3049.8,3049.7,0.001]
[1764360157141,4.97336566,3049.8,3049.7,0.001]
[1764360157347,5.07336566,3049.8,3049.7,0.001]
[1764360157923,1.69446213,3049.8,3049.7,0.001]
[1764360158217,4.52156566,3049.8,3049.7,0.001]
[1764360158750,5.00426566,3049.8,3049.7,0.001]
[1764360159620,5.10426566,3049.8,3049.7,0.001]
[1764360162136,5.00426566,3049.8,3049.7,0.001]
[1764360165704,4.6975757,3049.8,3049.7,0.001]
[1764360165906,4.52172065,3049.8,3049.7,0.001]
[1764360166714,5.00442065,3049.8,3049.7,0.001]
[1764360167611,5.10442065,3049.8,3049.7,0.001]
[1764360169619,11.07424519,3049.8,3049.7,0.001]
[1764360169832,30.34661819,3049.8,3049.7,0.001]
[1764360170738,34.01135819,3049.8,3049.7,0.001]
[1764360171339,31.71473481,3049.8,3049.7,0.001]
[1764360171714,11.07424519,3049.8,3049.7,0.001]
[1764360172030,34.32703219,3049.8,3049.7,0.001]
[1764360172230,32.96914319,3049.8,3049.7,0.001]
[1764360172547,32.97258247,3049.8,3049.7,0.001]
[1764360172843,36.53306647,3049.8,3049.7,0.001]
[1764360173024,32.53246747,3049.8,3049.7,0.001]
[1764360173219,30.85726347,3049.8,3049.7,0.001]
[1764360173943,32.11579648,3049.8,3049.7,0.001]
[1764360176015,32.66623248,3049.8,3049.7,0.001]
[1764360177048,27.88194148,3049.8,3049.7,0.001]
[1764360177548,27.59875048,3049.8,3049.7,0.001]
[1764360178048,32.95703148,3049.8,3049.7,0.001]
[1764360178347,29.67866548,3049.8,3049.7,0.001]
[1764360178660,17.81536948,3049.8,3049.7,0.001]
[1764360178952,4.97065777,3049.8,3049.7,0.4711]
[1764360179129,8.5724156,3049.8,3049.7,0.4711]
[1764360179319,9.0411156,3049.8,3049.7,0.001]
[1764360179720,4.5183856,3049.8,3049.7,0.001]
[1764360179932,0.30688796,3049.8,3049.7,0.4711]
[1764360181157,5.74920449,3049.8,3049.7,0.4711]
[1764360181516,2.47030096,3049.8,3049.7,0.001]
[1764360181716,0.30688796,3049.8,3049.7,0.001]
[1764360182541,5.87432349,3049.8,3049.7,0.001]
[1764360182746,5.87432349,3049.8,3049.7,0.4711]
[1764360183064,6.34302349,3049.8,3049.7,0.001]
[1764360183432,6.34302349,3049.8,3049.7,0.4711]
[1764360183433,5.87432349,3049.8,3049.7,0.4711]
[1764360183633,5.87432349,3049.8,3049.7,0.001]
[1764360183848,11.3836932,3049.8,3049.7,0.001]
[1764360184157,11.8663932,3049.8,3049.7,0.001]
[1764360184518,11.9663932,3049.8,3049.7,0.001]
[1764360184754,27.63108882,3049.8,3049.7,0.001]
[1764360185841,29.22621382,3049.8,3049.7,0.001]
[1764360186727,32.63486882,3049.8,3049.7,0.001]
[1764360187535,33.36046293,3049.8,3049.7,0.001]
[1764360187858,33.19309155,3049.8,3049.7,0.001]
[1764360188352,31.69609155,3049.8,3049.7,0.001]
[1764360188719,18.96800693,3049.8,3049.7,0.001]
[1764360188944,19.27500693,3049.8,3049.7,0.001]
[1764360189750,25.08375593,3049.8,3049.7,0.001]
[1764360189920,24.76886693,3049.8,3049.7,0.001]
[1764360190324,24.66886693,3049.8,3049.7,0.001]
[1764360190534,24.76886693,3049.8,3049.7,0.001]
[1764360190819,26.48890993,3049.8,3049.7,0.001]
[1764360191019,24.88890993,3049.8,3049.7,0.001]
[1764360191218,24.88936963,3049.8,3049.7,0.001]
[1764360191839,26.81389963,3049.8,3049.7,0.001]
[1764360192019,25.64418463,3049.8,3049.7,0.001]
[1764360192223,25.39562963,3049.8,3049.7,0.001]
[1764360192651,25.72631025,3049.8,3049.7,0.001]
[1764360192821,26.84519525,3049.8,3049.7,0.001]
[1764360193026,26.33899525,3049.8,3049.7,0.001]
[1764360193221,25.21331463,3049.8,3049.7,0.001]
[1764360193847,25.25886163,3049.8,3049.7,0.001]
[1764360194045,19.68797663,3049.8,3049.7,0.001]
[1764360194227,19.47641363,3049.8,3049.7,0.001]
[1764360194658,18.78671363,3049.8,3049.7,0.001]
[1764360194949,19.79712763,3049.8,3049.7,0.001]
[1764360195166,16.21438063,3049.8,3049.7,0.001]
[1764360195325,16.11438063,3049.8,3049.7,0.001]
[1764360195932,11.67363463,3049.8,3049.7,0.001]
[1764360196157,16.82470463,3049.8,3049.7,0.001]
[1764360196739,17.30240463,3049.8,3049.7,0.001]
[1764360197029,17.45636463,3049.8,3049.7,0.001]
[1764360197361,16.51170763,3049.8,3049.7,0.001]
[1764360197732,16.51181698,3049.8,3049.7,0.001]
[1764360198031,26.37803798,3049.8,3049.7,0.001]
[1764360198430,12.15144398,3049.8,3049.7,0.001]
[1764360198741,26.38303798,3049.8,3049.7,0.001]
[1764360199130,27.93189898,3049.8,3049.7,0.001]
[1764360199731,27.12685498,3049.8,3049.7,0.001]
[1764360199956,25.21959098,3049.8,3049.7,0.001]
[1764360200168,22.73208898,3049.8,3049.7,0.001]
[1764360200460,21.74539098,3049.8,3049.7,0.001]
[1764360201232,26.49356798,3049.8,3049.7,0.001]
[1764360201642,26.01586798,3049.8,3049.7,0.001]
[1764360201840,19.38092698,3049.8,3049.7,0.4677]
[1764360202069,19.48092698,3049.8,3049.7,0.4677]
[1764360202259,20.01862298,3049.8,3049.7,0.4677]
[1764360202464,20.50202298,3049.8,3049.7,0.001]
[1764360202879,19.27784598,3049.8,3049.7,0.001]
[1764360203174,19.58844898,3049.8,3049.7,0.001]
[1764360203548,18.86285487,3049.8,3049.7,0.001]
[1764360203749,18.11142298,3049.8,3049.7,0.001]
[1764360204176,21.01737998,3049.8,3049.7,0.001]
[1764360204475,21.50077998,3049.8,3049.7,0.001]
[1764360204682,21.40077998,3049.8,3049.7,0.001]
[1764360204973,21.87847998,3049.8,3049.7,0.001]
[1764360205202,24.99937798,3049.8,3049.7,0.001]
[1764360205378,24.68996798,3049.8,3049.7,0.001]
[1764360205547,24.37281698,3049.8,3049.7,0.001]
[1764360205874,23.17874198,3049.8,3049.7,0.001]
[1764360206076,20.69068398,3049.8,3049.7,0.001]
[1764360206277,20.72916898,3049.8,3049.7,0.001]
[1764360207149,23.78484398,3049.8,3049.7,0.001]
[1764360207746,22.85555998,3049.8,3049.7,0.001]
[1764360208360,24.12241498,3049.8,3049.7,0.001]
[1764360208575,23.20252498,3049.8,3049.7,0.001]
[1764360208777,22.54199498,3049.8,3049.7,0.001]
[1764360209251,12.16614398,3049.8,3049.7,0.001]
[1764360209451,21.58145498,3049.8,3049.7,0.001]
[1764360210350,24.37555398,3049.8,3049.7,0.001]
[1764360211478,26.27272498,3049.8,3049.7,0.001]
[1764360211682,26.06192498,3049.8,3049.7,0.001]
[1764360211871,25.42073898,3049.8,3049.7,0.001]
[1764360212070,22.77805398,3049.8,3049.7,0.001]
[1764360212576,20.68368498,3049.8,3049.7,0.001]
[1764360212777,18.34641698,3049.8,3049.7,0.001]
[1764360212984,15.17505998,3049.8,3049.7,0.4677]
[1764360213279,3.45673801,3049.8,3049.7,0.4677]
[1764360213473,11.78329572,3049.8,3049.7,0.001]
[1764360213670,15.53989925,3049.8,3049.7,0.001]
[1764360213874,15.63989925,3049.8,3049.7,0.001]
[1764360214076,15.53989925,3049.8,3049.7,0.001]
[1764360214274,17.52522864,3049.8,3049.7,0.001]
[1764360214455,11.70488101,3049.8,3049.7,0.001]
[1764360214654,27.68551601,3049.8,3049.7,0.001]
[1764360214883,27.78551601,3049.8,3049.7,0.001]
[1764360215190,27.30781601,3049.8,3049.7,0.001]
[1764360215350,27.66371601,3049.8,3049.7,0.001]
[1764360215556,35.72250001,3049.8,3049.7,0.001]
[1764360215756,32.72254701,3049.8,3049.7,0.001]
[1764360215972,26.43917201,3049.8,3049.7,0.001]
[1764360216177,26.76985263,3049.8,3049.7,0.001]
[1764360216659,30.32249363,3049.8,3049.7,0.001]
[1764360216862,28.95352501,3049.8,3049.7,0.001]
[1764360217056,28.95352501,3049.8,3049.4,0.001]
[1764360217057,13.41919173,3049.7,3049.4,0.001]
[1764360217279,41.70741415,3049.5,3049.4,0.001]
[1764360217590,0.72559411,3048.9,3048.1,0.4731]
[1764360217888,5.160562,3048.5,3048.2,0.4731]
[1764360218066,0.30745701,3048.4,3048.2,0.4731]
[1764360218265,0.30745701,3048.3,3048.2,0.4731]
[1764360218778,0.30745701,3048.3,3048.2,0.9328]
[1764360223591,0.30745701,3048.3,3047.5,0.93259411]
[1764360223592,31.479046,3048.0,3045.8,5.62822303]
[1764360223792,5.04066971,3046.8,3046.1,0.6584]
[1764360224092,9.527639,3046.4,3046.2,0.4731]
[1764360224289,0.30745701,3046.3,3046.1,0.1853]
[1764360224463,0.30745701,3046.2,3046.1,0.6584]
[1764360224890,0.30745701,3046.2,3046.1,1.1181]
[1764360225388,5.34812672,3046.2,3046.1,0.4597]
[1764360225691,8.63090526,3046.2,3046.1,0.4597]
[1764360226201,13.58484081,3046.2,3045.5,0.17733533]
[1764360226402,5.04066971,3045.8,3045.5,0.1445]
[1764360226695,0.30745701,3045.7,3045.5,0.6176]
[1764360226859,0.30745701,3045.6,3045.5,0.6176]
[1764360227066,10.85859643,3045.6,3045.1,0.1445]
[1764360227269,5.04066971,3045.2,3045.1,0.1445]
[1764360227492,5.34812672,3045.2,3044.9,0.4731]
[1764360227717,0.30745701,3045.1,3044.9,0.4731]
[1764360227875,0.30745701,3045.3,3044.9,0.4731]
[1764360228078,5.04066971,3045.4,3045.0,0.03284072]
[1764360228079,0.30745701,3045.2,3045.0,0.03284072]
[1764360228373,4.00857804,3046.1,3045.0,0.03284072]
[1764360228374,3.28156592,3047.4,3045.3,0.4597]
[1764360228578,3.28156592,3047.4,3045.7,0.4597]
[1764360228579,0.986821,3045.9,3045.7,0.4597]
[1764360228774,0.30429288,3045.8,3045.7,0.4597]
[1764360228979,0.30429288,3045.8,3045.7,0.4731]
[1764360229297,0.30429288,3045.8,3045.7,0.9328]
[1764360229972,0.30402488,3045.8,3045.7,0.9328]
[1764360230365,0.30402488,3046.1,3045.7,0.9328]
[1764360230570,0.30402488,3046.0,3045.8,0.4731]
[1764360230766,0.30402488,3045.9,3045.8,0.4731]
[1764360230982,0.30402488,3046.1,3045.8,0.4731]
[1764360231165,0.30402488,3046.0,3045.8,0.4731]
[1764360231370,0.30402488,3045.9,3045.8,0.4731]
[1764360231769,0.30402488,3046.1,3045.8,0.9328]
[1764360231970,0.30402488,3046.0,3045.8,0.4731]
[1764360232181,0.7139364,3046.2,3045.7,0.1649]
[1764360232182,0.30402488,3045.9,3045.7,0.1649]
[1764360232376,0.7139364,3046.2,3045.7,0.1649]
[1764360232377,0.30402488,3045.8,3045.7,0.1649]
[1764360232588,0.30402488,3046.1,3045.7,0.1649]
[1764360232792,0.30402488,3046.0,3045.8,0.4731]
[1764360232992,0.30402488,3045.9,3045.8,0.4731]
[1764360233299,0.30402488,3046.1,3045.8,0.90235408]
[1764360233498,0.30402488,3046.0,3045.9,0.6811]
[1764360233700,4.47677916,3046.8,3045.9,0.6811]
[1764360233701,0.30402488,3046.7,3045.9,0.6811]
[1764360233891,0.30402488,3046.6,3046.0,0.50592994]
[1764360234079,0.30402488,3046.5,3046.0,3.78888661]
[1764360234280,0.30402488,3046.4,3046.1,0.1649]
[1764360234492,0.30402488,3046.3,3046.2,0.03282778]
[1764360234999,0.30402488,3046.3,3046.2,0.9328]
[1764360236286,0.30402488,3046.3,3046.2,4.21557854]
[1764360238076,0.30402488,3046.3,3046.2,0.9328]
[1764360239918,0.30369722,3046.3,3046.2,0.9328]
[1764360240311,0.30369722,3046.3,3046.2,1.1408]
[1764360240508,0.30369722,3046.3,3046.2,0.4597]
[1764360240992,8.12571726,3046.3,3045.8,0.4741]
[1764360241198,0.53069722,3046.2,3045.8,0.001]
[1764360241416,9.272504,3045.9,3045.8,0.001]
[1764360241592,9.67620122,3045.9,3045.8,0.001]
[1764360241791,10.13210122,3045.9,3045.8,0.001]
[1764360242014,14.46570321,3045.9,3045.8,0.001]
[1764360242316,13.64048121,3045.9,3045.8,0.001]
[1764360242517,12.21394521,3045.9,3045.8,0.4607]
[1764360242724,12.68374521,3045.9,3045.8,0.001]
[1764360243302,5.10709921,3045.9,3045.4,0.001]
[1764360243490,11.927418,3045.7,3045.4,0.001]
[1764360243690,0.30369722,3045.6,3045.4,0.001]
[1764360243891,0.30369722,3045.5,3045.4,0.001]
[1764360244087,0.77349722,3045.5,3045.4,0.001]
[1764360245310,0.30369722,3045.5,3045.4,0.4805]
[1764360245513,0.30369722,3045.5,3045.4,0.9391]
[1764360246532,0.30369722,3045.5,3045.4,0.4805]
[1764360247598,0.30369722,3045.5,3045.4,0.001]
[1764360247803,0.30369722,3045.5,3045.4,0.4805]
[1764360248427,4.0554303,3045.5,3045.4,0.001]
[1764360248596,0.77189722,3045.5,3045.4,0.001]
[1764360249119,0.30369722,3045.5,3045.4,0.4805]
[1764360249323,0.30369722,3045.5,3045.4,0.001]
[1764360249620,0.30369722,3045.5,3045.4,0.4805]
[1764360250024,0.30369722,3045.5,3045.4,4.2227409]
[1764360250319,0.30369722,3045.5,3045.4,4.41530864]
[1764360251226,0.30369722,3045.5,3045.4,1.13166774]
[1764360251405,0.30369722,3045.5,3045.4,1.13266774]
[1764360251609,0.30369722,3045.5,3045.4,4.41630864]
[1764360251924,0.30369722,3045.5,3045.4,1.13266774]
[1764360253125,0.30369722,3045.5,3045.4,4.44914504]
[1764360253821,0.30369722,3045.5,3045.4,5.22243185]
[1764360254323,0.30369722,3045.5,3045.4,4.44914504]
[1764360254509,0.30369722,3045.5,3045.4,4.41630864]
[1764360255442,0.30369722,3045.5,3045.4,3.95770864]
[1764360255640,0.30369722,3045.5,3045.4,4.42600864]
[1764360257221,0.30369722,3045.5,3045.4,1.14236774]
[1764360258511,0.30369722,3045.5,3045.4,4.42600864]
[1764360259540,0.30369722,3045.5,3045.4,0.67406774]
[1764360260303,0.30369722,3045.5,3045.4,0.4578]
[1764360260930,0.30369722,3045.5,3045.4,0.6658]
[1764360261231,0.30369722,3045.5,3045.4,0.4578]
[1764360261529,0.30369722,3045.5,3045.4,0.6658]
[1764360261741,0.30369722,3045.5,3045.4,0.6498]
[1764360261935,0.30369722,3045.5,3045.4,3.9334409]
[1764360262336,0.30369722,3045.5,3045.4,0.6498]
[1764360263413,0.78659722,3045.5,3045.0,3.28499082]
[1764360263615,0.53529722,3045.4,3045.1,0.208]
[1764360263810,0.30369722,3045.3,3045.0,0.001]
[1764360264009,0.30369722,3045.2,3045.0,0.209]
[1764360264215,0.78659722,3045.1,3045.0,0.001]
[1764360264515,1.25419722,3045.1,3045.0,0.001]
[1764360264915,0.78659722,3045.1,3045.0,0.001]
[1764360265115,1.25419722,3045.1,3045.0,0.001]
[1764360265515,0.78659722,3045.1,3045.0,0.001]
[1764360266020,0.30369722,3045.1,3045.0,0.9261]
[1764360266212,0.78659722,3045.1,3045.0,0.001]
[1764360266418,4.53816162,3045.1,3045.0,0.001]
[1764360266644,1.5687906,3045.1,3045.0,0.001]
[1764360267458,0.78659722,3045.1,3045.0,0.001]
[1764360268015,4.07056162,3045.1,3045.0,0.001]
[1764360268242,4.53816162,3045.1,3045.0,0.001]
[1764360268639,1.25419722,3045.1,3045.0,0.001]
[1764360269536,4.53816162,3045.1,3045.0,0.001]
[1764360269711,2.03638964,3045.1,3045.0,0.001]
[1764360269915,5.32035404,3045.1,3045.0,0.001]
[1764360270335,2.03638964,3045.1,3045.0,0.001]
[1764360270644,5.32035404,3045.1,3045.0,0.001]
[1764360271057,1.56878964,3045.1,3045.0,0.001]
[1764360271341,0.30369722,3045.1,3045.0,0.4578]
[1764360272439,0.30369722,3045.1,3045.0,0.001]
[1764360272440,0.78659722,3045.1,3045.0,0.001]
[1764360272761,1.25419722,3045.1,3045.0,0.001]